bitfinex-derivatives/quotes_SOLF0:USTF0_20250125
["timestamp","ask_amount","ask_price","bid_price","bid_amount"]
[1737794357476,4.0205,248.76,248.68,13.32547076]
[1737794357675,9.30387076,248.84,248.69,2.6399]
[1737794357878,9.30387076,248.84,248.69,3.9048]
[1737794358576,4.0203,248.77,248.69,3.9048]
[1737794358783,0.02909153,248.79,248.69,3.9048]
[1737794359281,4.0203,248.78,248.71,4.0212]
[1737794359683,4.0203,248.78,248.69,3.9048]
[1737794359879,0.02909153,248.79,248.72,9.30387076]
[1737794360983,0.02909153,248.79,248.69,13.20867076]
[1737794361575,0.02909153,248.79,248.69,3.9048]
[1737794361878,5.9569652,248.78,248.69,9.8617652]
[1737794362686,4.0205,248.76,248.69,9.8617652]
[1737794362891,0.02909153,248.79,248.71,5.9569652]
[1737794364093,4.0203,248.77,248.71,5.9569652]
[1737794364293,0.02909153,248.79,248.73,5.9569652]
[1737794364491,0.02909153,248.79,248.75,5.9569652]
[1737794364688,38.98770038,248.97,248.82,5.9569652]
[1737794364894,5.9569652,248.97,248.89,5.9569652]
[1737794365188,4.0173,248.96,248.89,5.9569652]
[1737794365489,5.59962934,248.98,248.89,5.9569652]
[1737794365693,5.59962934,248.98,248.92,5.9569652]
[1737794365694,0.03034221,248.96,248.92,5.9569652]
[1737794367397,4.0157,249.06,248.98,5.9569652]
[1737794367596,5.9569652,249.05,248.98,5.9569652]
[1737794367799,9.28725146,249.09,248.93,9.28725146]
[1737794367998,9.28725146,249.09,248.94,1.3287]
[1737794368395,0.02758948,249.04,248.99,0.03056144]
[1737794371100,4.0152,249.09,248.99,0.03056144]
[1737794371298,9.28725146,249.17,248.99,0.03056144]
[1737794371490,4.0153,249.08,248.98,2.62]
[1737794371891,4.0153,249.08,249.01,9.28725146]
[1737794372098,0.02706848,249.05,249.01,9.31405099]
[1737794372395,4.04286848,249.05,249.01,9.31405099]
[1737794372703,0.02706848,249.05,249.01,9.31405099]
[1737794372999,193.0,249.18,249.04,9.28725146]
[1737794373203,193.0,249.18,249.05,1.2726]
[1737794373597,4.0147,249.12,249.07,9.28725146]
[1737794373895,4.0147,249.12,249.07,9.31597961]
[1737794374099,4.04136473,249.12,249.07,9.31597961]
[1737794374295,0.02666473,249.12,249.07,9.31597961]
[1737794374900,0.02666473,249.12,249.1,9.28725146]
[1737794375501,9.40455146,249.26,249.1,9.28725146]
[1737794376602,4.0145,249.13,249.1,9.28725146]
[1737794377397,0.02842927,249.14,249.1,9.28725146]
[1737794377601,0.02842927,249.14,249.13,9.28725146]
[1737794381107,4.04272927,249.14,249.13,9.28725146]
[1737794382201,4.0145,249.13,249.11,0.02893607]
[1737794384407,0.02842927,249.14,249.11,0.02893607]
[1737794384708,0.02842927,249.14,249.13,9.28725146]
[1737794391811,0.02842927,249.14,249.13,5.93409817]
[1737794394917,4.0134,249.2,249.13,5.93409817]
[1737794395113,4.0134,249.2,249.18,5.93409817]
[1737794396110,0.02659012,249.21,249.18,5.93409817]
[1737794396313,0.02659012,249.21,249.2,5.93409817]
[1737794397211,4.03979012,249.21,249.2,5.93409817]
[1737794397418,0.02659012,249.21,249.2,5.93409817]
[1737794398414,5.93409817,249.37,249.2,5.93409817]
[1737794398614,5.93409817,249.41,249.33,5.93409817]
[1737794398817,5.93409817,249.41,249.31,5.93409817]
[1737794399508,4.0113,249.33,249.32,0.02820833]
[1737794400722,4.0113,249.33,249.32,8.33e-06]
[1737794401026,5.93409817,249.34,249.25,5.93409817]
[1737794401219,7.34769817,249.36,249.27,5.93409817]
[1737794401415,1.3371,249.36,249.3,5.93409817]
[1737794401921,4.0115,249.32,249.3,5.93409817]
[1737794402122,5.96342575,249.35,249.31,0.02689825]
[1737794402321,5.93409817,249.35,249.26,5.93409817]
[1737794402522,5.9648486,249.35,249.31,0.02762168]
[1737794403228,4.0114,249.32,249.31,0.02762168]
[1737794407928,4.0114,249.32,249.31,2.168e-05]
[1737794409422,0.03075043,249.35,249.31,2.168e-05]
[1737794410123,4.0114,249.33,249.31,2.168e-05]
[1737794411537,0.03075043,249.35,249.31,2.168e-05]
[1737794411731,4.04185043,249.35,249.31,2.168e-05]
[1737794412134,4.0111,249.34,249.31,2.168e-05]
[1737794412526,0.03075043,249.35,249.31,2.168e-05]
[1737794413625,4.0111,249.34,249.31,2.168e-05]
[1737794416234,0.03075043,249.35,249.31,2.168e-05]
[1737794417335,4.04165043,249.35,249.31,2.168e-05]
[1737794418038,4.0111,249.34,249.31,2.168e-05]
[1737794418533,0.03075043,249.35,249.31,2.168e-05]
[1737794419636,4.0111,249.34,249.31,2.168e-05]
[1737794422231,0.03075043,249.35,249.31,2.168e-05]
[1737794422838,0.03075043,249.35,249.27,1.1365529]
[1737794423040,0.03075043,249.35,249.25,9.26676459]
[1737794423537,4.04165043,249.35,249.28,4.012]
[1737794423940,4.04165043,249.35,249.29,0.0254717]
[1737794424438,0.03075043,249.35,249.29,0.0254717]
[1737794424638,4.0113,249.33,249.29,0.0254717]
[1737794425444,4.0117,249.3,249.29,0.0254717]
[1737794429736,9.94331496,249.3,249.29,0.0254717]
[1737794432338,5.93161496,249.3,249.18,2.6424]
[1737794432538,9.94441496,249.24,249.18,2.6424]
[1737794432835,5.93161496,249.24,249.18,1.3229]
[1737794433241,4.0133,249.21,249.18,1.3229]
[1737794433839,0.02766407,249.22,249.19,5.93161496]
[1737794434043,5.93161496,249.33,249.21,5.93161496]
[1737794434240,5.93161496,249.33,249.25,5.93161496]
[1737794435147,4.0119,249.29,249.27,0.02629939]
[1737794437644,9.94351496,249.29,249.27,0.02629939]
[1737794438138,4.0119,249.29,249.27,0.02629939]
[1737794441948,4.04064476,249.31,249.27,0.02629939]
[1737794443150,4.0118,249.3,249.27,0.02629939]
[1737794443547,0.02894476,249.31,249.27,0.02629939]
[1737794445351,0.02894476,249.31,249.27,5.95791435]
[1737794446851,0.02894476,249.31,249.27,0.02629939]
[1737794451554,4.04054476,249.31,249.27,0.02629939]
[1737794452256,0.02894476,249.31,249.27,5.95791435]
[1737794452458,0.02894476,249.31,249.29,5.93161496]
[1737794453357,0.02894476,249.31,249.27,5.95791435]
[1737794456755,0.02894476,249.31,249.29,5.93161496]
[1737794457055,4.0106,249.37,249.29,9.94351496]
[1737794457259,4.0106,249.37,249.32,5.93161496]
[1737794457558,4.0106,249.37,249.3,5.93161496]
[1737794457761,4.0108,249.36,249.3,5.93161496]
[1737794458153,0.02873499,249.35,249.31,0.02995447]
[1737794458355,4.0111,249.34,249.31,0.02995447]
[1737794458550,0.02873499,249.35,249.31,0.02995447]
[1737794459154,4.03983499,249.35,249.31,0.02995447]
[1737794459462,0.02873499,249.35,249.31,0.02995447]
[1737794459658,0.02873499,249.35,249.32,5.93161496]
[1737794460653,0.02873499,249.35,249.31,0.02995447]
[1737794461460,4.0111,249.34,249.31,0.02995447]
[1737794462757,4.0114,249.32,249.31,0.02995447]
[1737794466466,4.03973499,249.35,249.31,0.02995447]
[1737794467358,0.02873499,249.35,249.31,0.02995447]
[1737794467560,4.0111,249.34,249.31,0.02995447]
[1737794467758,0.02873499,249.35,249.31,0.02995447]
[1737794468166,4.0111,249.34,249.31,0.02995447]
[1737794468366,5.96034995,249.35,249.31,0.02995447]
[1737794468865,4.0114,249.33,249.31,0.02995447]
[1737794469368,9.94301496,249.33,249.31,0.02995447]
[1737794469760,0.02873499,249.35,249.31,0.02995447]
[1737794469965,4.0111,249.34,249.31,0.02995447]
[1737794470861,4.0113,249.33,249.31,0.02995447]
[1737794472064,0.02873499,249.35,249.31,0.02995447]
[1737794472867,4.0113,249.33,249.31,0.02995447]
[1737794473572,5.93161496,249.32,249.31,0.02995447]
[1737794475162,4.03983499,249.35,249.31,0.02995447]
[1737794475765,4.0111,249.34,249.31,0.02995447]
[1737794477170,9.94291496,249.33,249.31,0.02995447]
[1737794478065,4.0122,249.28,249.22,5.93161496]
[1737794478669,5.93161496,249.32,249.22,5.93161496]
[1737794478872,4.0118,249.3,249.24,5.93161496]
[1737794479171,0.02614758,249.29,249.25,0.02594693]
[1737794479874,4.03804758,249.29,249.25,0.02594693]
[1737794480168,0.02614758,249.29,249.25,0.02594693]
[1737794480373,0.02614758,249.29,249.26,5.93161496]
[1737794480776,0.02614758,249.29,249.28,5.93161496]
[1737794480972,5.93161496,249.39,249.28,5.93161496]
[1737794481275,5.93161496,249.39,249.3,5.93161496]
[1737794481767,4.0109,249.36,249.3,5.93161496]
[1737794482075,0.02755658,249.35,249.31,0.02848498]
[1737794482374,0.02755658,249.35,249.33,5.93161496]
[1737794484374,5.93161496,249.42,249.33,5.93161496]
[1737794484571,5.93161496,249.48,249.37,5.93161496]
[1737794484779,5.93161496,249.5,249.4,5.93161496]
[1737794485375,5.93161496,249.52,249.42,5.93161496]
[1737794485573,0.03030263,249.45,249.42,5.93161496]
[1737794486173,4.03970263,249.45,249.42,5.93161496]
[1737794486478,0.03030263,249.45,249.42,5.93161496]
[1737794487481,4.03970263,249.45,249.42,5.93161496]
[1737794487683,4.03970263,249.45,249.41,0.02654091]
[1737794487879,0.03030263,249.45,249.41,0.02654091]
[1737794488079,4.0098,249.43,249.41,0.02654091]
[1737794488280,0.03030263,249.45,249.41,0.02654091]
[1737794488777,4.0097,249.43,249.41,0.02654091]
[1737794489183,9.25482433,249.44,249.29,5.2796]
[1737794489380,4.011,249.35,249.29,5.2796]
[1737794489682,9.25482433,249.4,249.29,5.2796]
[1737794490086,4.0116,249.31,249.29,2.62]
[1737794490582,9.25482433,249.36,249.28,0.03082322]
[1737794490983,0.0298546,249.34,249.28,0.03082322]
[1737794491282,4.0119,249.29,249.28,0.03082322]
[1737794494084,0.0298546,249.34,249.28,0.03082322]
[1737794494490,8.76256782,249.29,249.28,0.03082322]
[1737794495087,0.0298546,249.34,249.28,0.03082322]
[1737794495786,4.0410546,249.34,249.28,0.03082322]
[1737794496591,4.0113,249.33,249.28,0.03082322]
[1737794497289,0.0298546,249.34,249.28,0.03082322]
[1737794500094,4.0409546,249.34,249.28,0.03082322]
[1737794500487,0.0298546,249.34,249.28,0.03082322]
[1737794500692,4.0113,249.33,249.28,0.03082322]
[1737794501991,0.0298546,249.34,249.28,0.03082322]
[1737794502692,4.0116,249.31,249.28,0.03082322]
[1737794503986,4.0113,249.33,249.28,0.03082322]
[1737794504895,0.0298546,249.34,249.28,0.03082322]
[1737794505695,4.0115,249.32,249.28,0.03082322]
[1737794505896,0.0298546,249.34,249.28,0.03082322]
[1737794507099,4.0118,249.3,249.28,0.03082322]
[1737794512701,2.97800101,249.29,249.28,0.03082322]
[1737794512904,4.0118,249.3,249.28,0.03082322]
[1737794519105,0.0298546,249.34,249.28,0.03082322]
[1737794521103,4.0115,249.32,249.28,0.03082322]
[1737794521507,0.0298546,249.34,249.28,0.03082322]
[1737794523898,0.0298546,249.34,249.3,4.0117]
[1737794524100,0.0298546,249.34,249.28,0.03082322]
[1737794524809,0.0298546,249.34,249.31,9.25482433]
[1737794525713,0.0298546,249.34,249.33,5.92587261]
[1737794528812,0.0298546,249.34,249.29,5.92587261]
[1737794529118,4.0118,249.3,249.28,0.03082322]
[1737794530810,4.0114,249.33,249.28,0.03082322]
[1737794531508,4.0115,249.32,249.28,0.03082322]
[1737794534818,0.0298546,249.34,249.28,0.03082322]
[1737794535215,41.61869502,249.46,249.32,9.2673309]
[1737794535515,4.0103,249.39,249.32,9.2673309]
[1737794536418,0.02859138,249.38,249.33,0.02715855]
[1737794539818,0.02859138,249.38,249.33,1.36105855]
[1737794540014,41.61869502,249.46,249.33,2.72435855]
[1737794540213,9.2673309,249.48,249.33,2.72435855]
[1737794540420,9.2673309,249.48,249.34,1.3713]
[1737794540723,2.97487831,249.47,249.34,1.3713]
[1737794540924,4.0094,249.45,249.38,4.0105]
[1737794541222,0.02551552,249.44,249.39,0.02801724]
[1737794541925,0.02551552,249.44,249.39,4.03821724]
[1737794542622,4.03511552,249.44,249.39,0.02801724]
[1737794542824,0.02551552,249.44,249.39,0.02801724]
[1737794543521,4.01,249.41,249.39,0.02801724]
[1737794548030,13.2773309,249.41,249.39,0.02801724]
[1737794551421,13.2773309,249.41,249.39,1.724e-05]
[1737794552027,4.01,249.41,249.39,1.724e-05]
[1737794557624,4.0102,249.4,249.39,1.724e-05]
[1737794557832,5.9266098,249.41,249.39,1.724e-05]
[1737794558035,5.9266098,249.43,249.39,1.724e-05]
[1737794558232,0.02551552,249.44,249.39,1.724e-05]
[1737794558833,5.9266098,249.43,249.39,1.724e-05]
[1737794559132,4.01,249.41,249.39,1.724e-05]
[1737794563437,0.02551552,249.44,249.39,1.724e-05]
[1737794565038,4.01,249.42,249.39,1.724e-05]
[1737794566438,0.02551552,249.44,249.39,1.724e-05]
[1737794566738,4.01,249.41,249.39,1.724e-05]
[1737794567534,0.02551552,249.44,249.39,1.724e-05]
[1737794568141,9.25800176,249.42,249.39,1.724e-05]
[1737794568534,4.0101,249.41,249.39,1.724e-05]
[1737794571141,9.25800176,249.42,249.26,4.0123]
[1737794571335,9.25800176,249.37,249.23,139.92438087]
[1737794572142,4.0113,249.33,249.24,4.0127]
[1737794572344,0.0291201,249.32,249.28,0.02679]
[1737794574141,0.0291201,249.32,249.28,4.03889]
[1737794574746,0.0291201,249.32,249.28,0.02679]
[1737794576251,4.0118,249.3,249.28,0.02679]
[1737794577341,0.0291201,249.32,249.28,0.02679]
[1737794578151,4.0119,249.3,249.28,0.02679]
[1737794584050,4.0407201,249.32,249.28,0.02679]
[1737794585852,4.0118,249.3,249.28,0.02679]
[1737794586152,0.0291201,249.32,249.28,0.02679]
[1737794586655,4.0117,249.31,249.28,0.02679]
[1737794591355,0.0291201,249.32,249.28,0.02679]
[1737794592257,4.0119,249.29,249.28,0.02679]
[1737794599157,4.0116,249.31,249.28,0.02679]
[1737794599857,4.0118,249.3,249.28,0.02679]
[1737794601757,0.0291201,249.32,249.28,0.02679]
[1737794601949,4.0119,249.29,249.28,0.02679]
[1737794608561,5.931855,249.3,249.15,5.931855]
[1737794608858,12.04,249.39,249.15,5.931855]
[1737794608859,5.931855,249.23,249.15,5.931855]
[1737794609258,4.0132,249.21,249.16,4.0139]
[1737794609455,4.0132,249.21,249.15,5.931855]
[1737794609652,4.04263445,249.21,249.16,0.02715858]
[1737794609953,0.02943445,249.21,249.18,5.931855]
[1737794610151,5.931855,249.31,249.2,5.931855]
[1737794610352,5.931855,249.33,249.23,5.931855]
[1737794610964,2.9781172,249.32,249.23,5.931855]
[1737794611162,4.0121,249.28,249.23,5.931855]
[1737794611359,4.0121,249.28,249.25,0.02562816]
[1737794612166,0.02821248,249.3,249.25,0.02562816]
[1737794612357,4.0123,249.27,249.25,0.02562816]
[1737794613258,5.931855,249.26,249.25,0.02562816]
[1737794613960,5.931855,249.26,249.16,5.931855]
[1737794614160,5.931855,249.23,249.16,5.931855]
[1737794614561,4.0129,249.24,249.16,5.931855]
[1737794614762,5.931855,249.25,249.16,5.931855]
[1737794615158,0.03021592,249.23,249.18,0.02728925]
[1737794615965,4.0131,249.22,249.18,0.02728925]
[1737794617871,4.0132,249.21,249.18,0.02728925]
[1737794618666,4.0134,249.2,249.18,0.02728925]
[1737794620969,0.03021592,249.23,249.18,5.95914425]
[1737794621366,0.03021592,249.23,249.21,5.931855]
[1737794622667,2.7032,249.34,249.21,5.931855]
[1737794622668,5.931855,249.4,249.21,5.931855]
[1737794622868,5.931855,249.4,249.31,5.931855]
[1737794623164,2.97981627,249.39,249.37,5.931855]
[1737794623361,22.73074303,249.46,249.37,5.931855]
[1737794623662,9.60902934,249.45,249.39,5.931855]
[1737794623870,0.03044395,249.43,249.39,0.02970094]
[1737794624465,5.931855,249.4,249.31,5.931855]
[1737794624667,5.931855,249.33,249.24,5.931855]
[1737794624872,5.931855,249.31,249.22,5.931855]
[1737794625070,5.931855,249.29,249.2,145.85623587]
[1737794625663,9.26870423,249.33,249.22,0.02611303]
[1737794625969,0.02863779,249.27,249.22,0.02611303]
[1737794627670,9.26870423,249.37,249.22,0.02611303]
[1737794627869,9.26870423,249.37,249.21,9.26870423]
[1737794628372,2.97881088,249.36,249.21,9.26870423]
[1737794628772,0.02717739,249.31,249.26,0.03064895]
[1737794629772,4.012,249.29,249.26,0.03064895]
[1737794629978,0.02717739,249.31,249.26,0.03064895]
[1737794630276,4.0122,249.28,249.26,0.03064895]
[1737794638991,4.0118,249.3,249.26,0.03064895]
[1737794639491,0.02717739,249.31,249.26,0.03064895]
[1737794640097,4.0118,249.3,249.26,0.03064895]
[1737794641092,4.0119,249.29,249.26,0.03064895]
[1737794641386,0.02717739,249.31,249.26,0.03064895]
[1737794642095,4.0122,249.28,249.26,0.03064895]
[1737794644898,0.02717739,249.31,249.26,0.03064895]
[1737794645692,4.0118,249.3,249.26,0.03064895]
[1737794645895,9.26870423,249.29,249.26,0.03064895]
[1737794646095,12.24910923,249.29,249.26,0.03064895]
[1737794646291,12.24910923,249.29,249.26,4.895e-05]
[1737794646895,4.0123,249.27,249.26,4.895e-05]
[1737794647394,6.992705,249.27,249.26,4.895e-05]
[1737794647598,4.0136,249.19,249.15,4.0089]
[1737794647791,9.26870423,249.25,249.15,4.0089]
[1737794648591,4.0134,249.2,249.15,4.0089]
[1737794648791,0.02537036,249.22,249.18,0.02540549]
[1737794650898,4.0134,249.2,249.18,0.02540549]
[1737794652593,0.02537036,249.22,249.18,0.02540549]
[1737794655399,4.0134,249.2,249.18,0.02540549]
[1737794657600,4.0135,249.19,249.18,0.02540549]
[1737794657800,0.02537036,249.22,249.18,0.02540549]
[1737794659998,4.03847036,249.22,249.18,0.02540549]
[1737794660803,0.02537036,249.22,249.18,0.02540549]
[1737794661304,4.0118,249.3,249.21,13.28180423]
[1737794661504,4.0118,249.3,249.21,9.26870423]
[1737794662005,4.0116,249.31,249.23,4.0129]
[1737794662599,0.02908722,249.29,249.25,0.02784465]
[1737794664308,4.0123,249.27,249.25,0.02784465]
[1737794664804,0.02908722,249.29,249.25,0.02784465]
[1737794665004,4.0121,249.28,249.25,0.02784465]
[1737794665603,0.02908722,249.29,249.25,0.02784465]
[1737794667205,4.04108722,249.29,249.25,0.02784465]
[1737794668106,0.02908722,249.29,249.25,0.02784465]
[1737794668805,4.0124,249.27,249.25,0.02784465]
[1737794670010,0.02908722,249.29,249.25,0.02784465]
[1737794671109,4.0122,249.28,249.25,0.02784465]
[1737794672312,4.0123,249.27,249.25,0.02784465]
[1737794672509,0.02908722,249.29,249.25,0.02784465]
[1737794672813,4.0124,249.27,249.25,0.02784465]
[1737794673109,0.02908722,249.29,249.25,0.02784465]
[1737794673505,2.98402099,249.28,249.25,0.02784465]
[1737794673805,4.0124,249.26,249.25,0.02784465]
[1737794674212,6.99642099,249.26,249.25,0.02784465]
[1737794679521,2.98402099,249.26,249.25,0.02784465]
[1737794679919,4.0122,249.28,249.25,0.02784465]
[1737794680115,4.0123,249.27,249.25,0.02784465]
[1737794680316,0.02908722,249.29,249.25,0.02784465]
[1737794681520,4.0121,249.28,249.25,0.02784465]
[1737794682519,0.02908722,249.29,249.25,0.02784465]
[1737794682718,4.0123,249.27,249.25,0.02784465]
[1737794682914,0.02908722,249.29,249.25,0.02784465]
[1737794683223,4.0124,249.26,249.25,0.02784465]
[1737794683922,6.99661007,249.26,249.25,0.02784465]
[1737794684621,4.0124,249.26,249.25,0.02784465]
[1737794686923,6.9970715,249.26,249.25,0.02784465]
[1737794688120,2.9846715,249.26,249.25,0.02784465]
[1737794688627,4.0122,249.28,249.25,0.02784465]
[1737794689623,4.0123,249.27,249.25,0.02784465]
[1737794692728,4.0124,249.26,249.25,0.02784465]
[1737794694823,6.99784531,249.26,249.25,0.02784465]
[1737794698135,2.98544531,249.26,249.25,0.02784465]
[1737794699131,0.02908722,249.29,249.25,0.02784465]
[1737794699433,2.98636702,249.28,249.25,0.02784465]
[1737794700135,6.99866702,249.27,249.25,0.02784465]
[1737794700535,4.0123,249.27,249.25,0.02784465]
[1737794702139,5.96156328,249.29,249.25,0.02784465]
[1737794702336,9.94487606,249.26,249.25,0.02784465]
[1737794702735,12.93258259,249.26,249.25,0.02784465]
[1737794703831,12.93258259,249.26,249.25,4.465e-05]
[1737794705035,4.0139,249.17,249.11,5.93247606]
[1737794705741,4.0139,249.17,249.09,2.629]
[1737794706137,4.0139,249.17,249.12,137.33229023]
[1737794706338,4.04474375,249.17,249.12,0.02790936]
[1737794706738,4.0141,249.16,249.12,0.02790936]
[1737794707037,0.03084375,249.17,249.12,0.02790936]
[1737794707442,4.0144,249.14,249.12,0.02790936]
[1737794709744,4.0141,249.16,249.12,0.02790936]
[1737794715550,4.0142,249.15,249.12,0.02790936]
[1737794716744,0.03084375,249.17,249.12,0.02790936]
[1737794716947,1.3692,249.28,249.15,9.27522024]
[1737794717148,52.68309653,249.31,249.15,9.27522024]
[1737794717548,4.0124,249.27,249.18,4.0137]
[1737794717749,52.68309653,249.31,249.16,2.6774]
[1737794717943,52.68309653,249.31,249.16,3.9741]
[1737794718148,0.02986236,249.26,249.21,4.04321811]
[1737794718349,0.02986236,249.26,249.21,0.03011811]
[1737794719757,9.3050826,249.26,249.21,0.03011811]
[1737794719957,4.013,249.23,249.21,0.03011811]
[1737794720758,4.0139,249.17,249.15,2.62]
[1737794720954,4.0139,249.17,249.09,4.0151]
[1737794721261,9.27522024,249.23,249.09,4.0151]
[1737794721463,9.27522024,249.23,249.07,11.89522024]
[1737794721757,9.27522024,249.27,249.11,9.27522024]
[1737794721959,0.02543524,249.17,249.13,0.02981557]
[1737794722159,9.27522024,249.27,249.13,0.02981557]
[1737794722358,1.3139,249.3,249.13,0.02981557]
[1737794722359,0.03030563,249.17,249.13,0.02981557]
[1737794722557,9.27522024,249.24,249.08,9.27522024]
[1737794722760,0.02954901,249.17,249.13,0.02925083]
[1737794723467,43.40787629,249.31,249.16,9.27522024]
[1737794723656,43.40787629,249.31,249.17,1.3489]
[1737794723853,43.40787629,249.31,249.17,2.6598]
[1737794724057,2.97681352,249.3,249.17,2.6598]
[1737794724555,0.0278272,249.26,249.21,0.02641131]
[1737794727157,4.0403272,249.26,249.21,0.02641131]
[1737794727362,0.0278272,249.26,249.21,0.02641131]
[1737794729562,4.0128,249.24,249.21,0.02641131]
[1737794730566,0.0278272,249.26,249.21,0.02641131]
[1737794731567,4.0128,249.24,249.21,0.02641131]
[1737794732369,4.0129,249.23,249.21,0.02641131]
[1737794733669,9.27522024,249.22,249.21,0.02641131]
[1737794733868,4.0142,249.16,249.1,1.3293]
[1737794734068,9.27522024,249.22,249.1,1.3293]
[1737794735168,0.02927493,249.18,249.14,0.02791401]
[1737794736270,4.04307493,249.18,249.14,0.02791401]
[1737794738871,0.02927493,249.18,249.14,0.02791401]
[1737794739078,4.0142,249.16,249.14,0.02791401]
[1737794746583,4.0142,249.15,249.14,0.02791401]
[1737794747683,9.9531809,249.15,249.14,0.02791401]
[1737794749986,4.0142,249.15,249.14,0.02791401]
[1737794750382,4.014,249.17,249.14,0.02791401]
[1737794751277,0.02927493,249.18,249.16,4.014]
[1737794752282,0.02927493,249.18,249.17,5.9389809]
[1737794752480,5.9389809,249.25,249.17,5.9389809]
[1737794752684,5.9389809,249.27,249.19,5.9389809]
[1737794752989,4.0125,249.26,249.19,5.9389809]
[1737794753690,5.96881283,249.25,249.2,0.02537344]
[1737794753889,5.9389809,249.23,249.2,0.02537344]
[1737794755090,4.0131,249.22,249.2,0.02537344]
[1737794756992,5.9389809,249.21,249.2,0.02537344]
[1737794760094,4.0144,249.14,249.09,6.6351]
[1737794760289,9.9533809,249.14,249.09,2.62]
[1737794761190,9.9809455,249.14,249.09,2.64794441]
[1737794761895,0.0275646,249.14,249.1,5.9389809]
[1737794762396,0.0275646,249.14,249.1,9.9538809]
[1737794762688,5.9389809,249.18,249.1,9.9538809]
[1737794763093,5.9389809,249.2,249.12,5.9389809]
[1737794763286,4.0134,249.21,249.13,5.3279]
[1737794763694,5.9389809,249.22,249.13,5.3279]
[1737794763895,0.02537171,249.19,249.15,0.025882]
[1737794764298,4.03897171,249.19,249.15,0.025882]
[1737794764497,0.02537171,249.19,249.15,0.025882]
[1737794765395,5.9389809,249.18,249.15,0.025882]
[1737794766199,4.014,249.16,249.15,0.025882]
[1737794771395,4.015,249.1,249.05,1.2593]
[1737794772599,4.04411458,249.1,249.05,1.289846]
[1737794773600,0.02911458,249.1,249.08,13.29238247]
[1737794773800,9.27708247,249.21,249.08,9.27708247]
[1737794774003,4.014,249.17,249.09,4.0151]
[1737794774893,0.02732557,249.15,249.11,0.02785211]
[1737794775998,4.0144,249.14,249.11,0.02785211]
[1737794776501,0.02732557,249.15,249.11,0.02785211]
[1737794777203,4.0145,249.13,249.11,0.02785211]
[1737794781201,0.02732557,249.15,249.11,0.02785211]
[1737794781402,4.04162557,249.15,249.11,0.02785211]
[1737794781700,0.02732557,249.15,249.11,0.02785211]
[1737794781900,4.0144,249.14,249.11,0.02785211]
[1737794783001,4.04152557,249.15,249.11,0.02785211]
[1737794783206,0.02732557,249.15,249.11,0.02785211]
[1737794785810,4.0144,249.14,249.11,0.02785211]
[1737794786408,4.0146,249.13,249.11,0.02785211]
[1737794787908,4.0144,249.14,249.11,0.02785211]
[1737794788105,0.02732557,249.15,249.11,0.02785211]
[1737794789507,5.96454701,249.15,249.11,0.02785211]
[1737794789807,4.0146,249.13,249.11,0.02785211]
[1737794790008,5.96454701,249.15,249.11,0.02785211]
[1737794790809,4.0147,249.12,249.11,0.02785211]
[1737794793012,5.93722144,249.13,249.01,5.93722144]
[1737794793203,4.0156,249.07,249.01,5.93722144]
[1737794793910,5.93722144,249.08,249.01,5.93722144]
[1737794794111,4.0156,249.06,249.01,5.93722144]
[1737794794311,4.0156,249.06,249.02,0.0279366]
[1737794796813,0.0270297,249.07,249.02,0.0279366]
[1737794796814,4.0158,249.05,249.02,0.0279366]
[1737794797013,0.0270297,249.07,249.02,0.0279366]
[1737794797513,4.0159,249.05,249.02,0.0279366]
[1737794797708,0.0270297,249.07,249.02,0.0279366]
[1737794797914,5.93722144,249.04,249.02,0.0279366]
[1737794798213,5.93722144,249.04,248.93,154.42292313]
[1737794798214,5.93722144,249.04,248.95,5.93722144]
[1737794798513,4.0165,249.01,248.95,5.93722144]
[1737794799315,4.04719881,249.0,248.96,0.02973778]
[1737794800510,4.0169,248.99,248.96,0.02973778]
[1737794802611,0.03059881,249.0,248.96,0.02973778]
[1737794802819,4.0171,248.97,248.96,0.02973778]
[1737794803017,9.95432144,248.97,248.96,0.02973778]
[1737794816326,0.03059881,249.0,248.96,0.02973778]
[1737794817926,4.0171,248.98,248.96,0.02973778]
[1737794818621,0.03059881,249.0,248.96,0.02973778]
[1737794821330,4.04729881,249.0,248.96,0.02973778]
[1737794823435,5.93722144,248.99,248.96,0.02973778]
[1737794823636,4.017,248.98,248.96,0.02973778]
[1737794824136,0.03059881,249.0,248.96,0.02973778]
[1737794826736,4.0168,248.99,248.96,0.02973778]
[1737794827438,0.03059881,249.0,248.96,0.02973778]
[1737794829133,0.03059881,249.0,248.96,4.04683778]
[1737794832240,0.03059881,249.0,248.96,0.02973778]
[1737794832435,4.017,248.98,248.96,0.02973778]
[1737794832637,9.95422144,248.98,248.96,0.02973778]
[1737794832941,5.96782025,249.0,248.96,0.02973778]
[1737794833240,4.0168,248.99,248.96,0.02973778]